bitfinex/quotes_ETHUSD_20251031
["timestamp","ask_amount","ask_price","bid_price","bid_amount"]
[1761884684851,0.663,3874.8,3874.1,0.1288]
[1761884685052,2.58111939,3874.3,3874.1,0.1288]
[1761884685356,2.66613832,3874.2,3873.6,0.002]
[1761884685556,0.0849,3874.2,3873.6,0.002]
[1761884685747,2.58132446,3874.0,3873.6,0.002]
[1761884686059,2.5813113,3874.0,3873.9,0.1288]
[1761884686427,2.6700113,3874.0,3873.9,0.1288]
[1761884687222,0.0887,3874.0,3873.9,0.1288]
[1761884687447,2.6700113,3874.0,3873.9,0.1288]
[1761884687644,7.314476,3874.7,3873.9,0.6109]
[1761884687844,0.4767,3874.7,3873.9,0.4821]
[1761884688033,11.25954757,3874.6,3874.5,0.1288]
[1761884688350,10.86441457,3874.6,3874.5,0.1288]
[1761884688554,10.94931457,3874.6,3874.5,0.1288]
[1761884688769,10.69075457,3874.6,3874.5,0.1288]
[1761884689063,10.40885357,3874.6,3874.5,0.1288]
[1761884690668,3.14251157,3874.6,3874.5,0.1288]
[1761884691166,5.15215957,3874.6,3874.5,0.1288]
[1761884691339,2.66581157,3874.6,3874.5,0.1288]
[1761884691848,2.58091157,3874.6,3874.5,0.1288]
[1761884692169,0.001,3874.8,3874.5,0.5919]
[1761884692464,2.58178429,3874.8,3874.7,0.4631]
[1761884692664,2.58178429,3874.8,3874.7,0.5919]
[1761884696068,2.58178429,3874.8,3874.7,0.1288]
[1761884696870,2.58178429,3874.8,3874.7,0.5919]
[1761884697067,2.58178429,3874.8,3874.7,0.1288]
[1761884697950,2.58178429,3874.8,3874.7,0.5919]
[1761884698467,0.001,3874.8,3874.7,0.5919]
[1761884698645,2.58177836,3874.8,3874.7,0.5919]
[1761884699071,2.58177836,3874.8,3874.7,0.1288]
[1761884699255,3.12697836,3874.8,3874.7,0.1288]
[1761884699456,13.01759836,3874.8,3874.7,0.1288]
[1761884701561,2.58177836,3874.8,3874.7,0.5919]
[1761884701785,2.65407836,3874.8,3874.7,0.1288]
[1761884701965,20.16441336,3874.8,3874.7,0.1288]
[1761884702181,2.58097819,3874.5,3874.4,0.002]
[1761884702473,4.67977819,3874.5,3874.4,0.002]
[1761884702680,5.15267819,3874.5,3874.4,0.002]
[1761884702853,5.15267819,3874.5,3873.2,0.002]
[1761884702854,2.58151121,3873.7,3873.2,0.002]
[1761884703049,2.64921121,3873.7,3873.2,0.002]
[1761884703449,2.58108241,3874.4,3873.2,0.002]
[1761884703450,2.39913,3874.4,3873.6,0.9546]
[1761884703776,2.58137793,3873.9,3873.8,0.4631]
[1761884704071,0.4769,3874.7,3873.8,0.9526]
[1761884704072,2.58130783,3874.1,3873.8,0.9526]
[1761884704274,2.58131508,3874.0,3873.8,0.4895]
[1761884704475,2.58131508,3874.0,3873.9,0.4895]
[1761884704656,2.58131508,3874.0,3873.9,0.9526]
[1761884704975,2.58050408,3875.3,3873.9,0.9526]
[1761884705175,2.5807496,3874.9,3874.7,0.4631]
[1761884705474,0.001,3875.4,3874.7,0.4631]
[1761884705702,2.58071701,3874.9,3874.7,0.9526]
[1761884706193,2.58065352,3875.0,3874.7,0.9526]
[1761884706497,2.58152798,3875.2,3874.7,0.9526]
[1761884706498,2.5806022,3875.1,3874.7,0.9526]
[1761884706662,2.58076593,3874.9,3874.7,0.9526]
[1761884706992,0.001,3875.2,3874.7,0.9526]
[1761884707596,0.001,3875.2,3874.7,3.93894896]
[1761884708899,0.001,3875.2,3874.7,1.358104]
[1761884709084,0.001,3875.2,3874.7,3.93894896]
[1761884709263,0.001,3875.2,3874.7,0.9526]
[1761884709599,0.001,3875.2,3874.7,0.97840844]
[1761884709976,0.001,3875.2,3874.7,3.9647574]
[1761884710603,0.001,3875.2,3874.7,0.9526]
[1761884710763,2.58059419,3875.1,3874.7,0.9526]
[1761884711115,0.001,3875.2,3874.7,0.4631]
[1761884711266,0.001,3875.2,3874.3,0.1802]
[1761884711466,2.58084496,3874.7,3874.3,0.1802]
[1761884711905,2.5810448,3874.4,3874.0,0.1802]
[1761884712271,2.5810448,3874.4,3874.3,0.5919]
[1761884712485,2.58098401,3874.5,3874.3,0.5919]
[1761884712688,2.5810448,3874.4,3874.3,1.0814]
[1761884712970,2.58124467,3874.1,3874.0,0.1822]
[1761884713172,2.58124467,3874.1,3874.0,0.4651]
[1761884713372,0.001,3874.8,3874.0,1.0834]
[1761884713587,0.001,3874.8,3874.7,0.6433]
[1761884713967,0.001,3874.8,3874.7,1.1328]
[1761884714300,0.001,3874.8,3874.7,0.4631]
[1761884714807,0.001,3874.8,3874.7,0.9526]
[1761884715601,0.001,3874.8,3874.7,0.4631]
[1761884715602,2.58177836,3874.8,3874.7,0.4631]
[1761884716309,0.5462,3874.8,3874.0,0.002]
[1761884716480,0.0047,3874.5,3874.0,0.002]
[1761884716685,2.58110233,3874.4,3874.1,0.185]
[1761884716896,2.58117804,3874.2,3874.1,0.185]
[1761884717117,2.58124467,3874.1,3874.0,0.4903]
[1761884717296,2.58124467,3874.1,3874.0,0.9466]
[1761884717776,2.58124467,3874.1,3874.0,0.4583]
[1761884718607,0.001,3874.8,3874.0,0.4583]
[1761884719111,0.001,3874.8,3874.1,0.185]
[1761884719318,2.58117804,3874.2,3874.1,0.185]
[1761884719685,2.58117804,3874.2,3874.1,0.6413]
[1761884719882,2.58117804,3874.2,3874.1,0.4563]
[1761884720995,2.58117804,3874.2,3874.0,0.002]
[1761884720996,2.58124467,3874.1,3874.0,0.002]
[1761884721200,6.09832767,3874.1,3874.0,0.002]
[1761884721708,5.69821067,3874.1,3874.0,0.002]
[1761884721913,5.64041067,3874.1,3874.0,0.002]
[1761884722219,5.30768767,3874.1,3874.0,0.002]
[1761884722620,5.36548767,3874.1,3874.0,0.002]
[1761884722820,5.91745967,3874.1,3874.0,0.002]
[1761884723523,5.91745967,3874.1,3874.0,0.1308]
[1761884725842,5.97525967,3874.1,3874.0,0.1308]
[1761884726805,13.41411567,3874.1,3874.0,0.002]
[1761884727711,14.59764767,3874.1,3874.0,0.002]
[1761884728136,13.55343467,3874.1,3874.0,0.002]
[1761884728340,13.81103467,3874.1,3874.0,0.002]
[1761884728836,14.78661367,3874.1,3874.0,0.002]
[1761884729512,0.1288,3874.1,3874.0,0.002]
[1761884729713,2.78674467,3874.1,3874.0,0.002]
[1761884730121,2.65794467,3874.1,3874.0,0.002]
[1761884730653,0.001,3874.2,3874.0,0.4669]
[1761884730851,0.001,3874.2,3874.1,0.653]
[1761884731150,0.001,3874.2,3874.1,0.67881244]
[1761884731448,0.001,3874.2,3874.1,1.14331244]
[1761884733351,0.001,3874.2,3874.1,1.1175]
[1761884734061,0.001,3874.2,3874.1,0.653]
[1761884734616,2.58124467,3874.1,3874.0,0.002]
[1761884734913,3.05954467,3874.1,3874.0,0.002]
[1761884735760,13.10044267,3874.1,3874.0,0.002]
[1761884735968,13.18707167,3874.1,3874.0,0.002]
[1761884736944,14.26184467,3874.1,3874.0,0.002]
[1761884737345,12.33420367,3874.1,3874.0,0.002]
[1761884737778,9.38158267,3874.1,3874.0,0.002]
[1761884737982,10.57781967,3874.1,3874.0,0.002]
[1761884738277,3.05954467,3874.1,3874.0,0.002]
[1761884738446,2.58124467,3874.1,3874.0,0.002]
[1761884739046,3.98092467,3874.1,3874.0,0.002]
[1761884739450,3.98092467,3874.1,3874.0,0.1308]
[1761884740064,2.58124467,3874.1,3874.0,0.1308]
[1761884742688,2.65794467,3874.1,3874.0,0.1308]
[1761884743355,2.58124467,3874.1,3874.0,0.1308]
[1761884746504,2.65794467,3874.1,3874.0,0.1308]
[1761884746657,6.90844667,3874.1,3874.0,0.1308]
[1761884746997,4.80619467,3874.1,3874.0,0.1308]
[1761884747180,4.80719467,3874.1,3874.0,0.1308]
[1761884747579,5.28549467,3874.1,3874.0,0.1308]
[1761884747786,10.07905667,3874.1,3874.0,0.1308]
[1761884747985,11.47873667,3874.1,3874.0,0.1308]
[1761884748884,8.13469467,3874.1,3874.0,0.1308]
[1761884749068,6.29305267,3874.1,3874.0,0.1308]
[1761884749596,0.001,3874.1,3874.0,0.9258]
[1761884753322,0.001,3874.1,3874.0,5.3122953]
[1761884757124,0.001,3874.1,3874.0,11.09218761]
[1761884759133,0.001,3874.1,3874.0,11.19558939]
[1761884759723,0.001,3874.1,3874.0,11.32438939]
[1761884760329,0.001,3874.1,3874.0,5.4410953]
[1761884760734,0.001,3876.6,3876.5,0.405504]
[1761884761033,0.001,3876.6,3876.5,2.292084]
[1761884761220,0.001,3876.6,3876.5,2.34548]
[1761884761532,0.001,3876.6,3876.5,4.92512658]
[1761884761735,0.001,3876.6,3876.5,2.34548]
[1761884762030,0.065,3876.6,3875.9,1.23411082]
[1761884762231,2.6445803,3876.6,3875.9,1.23411082]
[1761884762445,0.065,3876.6,3875.9,1.23411082]
[1761884762646,0.001,3876.6,3875.9,1.85858]
[1761884763150,0.001,3876.6,3875.9,0.4589]
[1761884763448,2.58058398,3876.6,3875.9,0.4589]
[1761884763830,0.001,3876.6,3875.9,0.4589]
[1761884764051,2.58063133,3876.6,3875.8,0.1858]
[1761884764353,0.001,3876.6,3875.8,3.22479301]
[1761884764501,0.001,3876.6,3875.9,0.4589]
[1761884764940,2.58058869,3876.6,3875.9,0.4589]
[1761884765632,0.001,3876.6,3875.9,0.4589]
[1761884765849,2.58058896,3876.6,3875.9,0.4589]
[1761884766051,0.001,3876.6,3875.9,3.03889271]
[1761884766351,0.001,3876.6,3875.9,0.4589]
[1761884767337,2.58063113,3876.6,3875.9,0.4589]
[1761884767535,0.001,3876.6,3875.9,0.4589]
[1761884768440,2.5806019,3876.6,3875.9,0.4589]
[1761884768749,0.001,3876.6,3875.9,0.4589]
[1761884769054,0.001,3876.6,3875.1,1.58548]
[1761884769055,0.064,3876.0,3875.1,0.1858]
[1761884769251,0.4864,3876.6,3875.1,0.1858]
[1761884769252,2.58025765,3875.6,3875.1,0.1858]
[1761884769657,2.64452629,3875.2,3874.1,0.6447]
[1761884769874,2.64451393,3875.2,3874.3,0.4589]
[1761884770051,2.58064303,3875.1,3874.3,0.4589]
[1761884770369,0.4698,3874.4,3874.0,0.002]
[1761884770569,2.58037879,3875.4,3874.0,0.002]
[1761884770570,0.0794,3875.0,3874.0,0.002]
[1761884771065,2.66004516,3875.0,3874.9,0.1288]
[1761884771368,3.12594516,3875.0,3874.9,0.1288]
[1761884771869,0.4659,3875.0,3874.9,0.1288]
[1761884772066,2.58031647,3875.5,3874.9,1.0746]
[1761884772224,2.687558,3875.8,3874.2,0.4589]
[1761884772425,0.1901,3875.9,3874.2,0.4589]
[1761884772426,0.4854,3875.5,3874.4,2.58102533]
[1761884772643,2.58048812,3875.3,3874.4,2.58102533]
[1761884772970,2.58048812,3875.3,3874.4,3.03992533]
[1761884773155,0.4854,3875.5,3875.2,0.1288]
[1761884773357,2.5806509,3875.0,3874.2,3.04005521]
[1761884773672,2.5806509,3875.0,3874.1,0.1858]
[1761884773673,2.5806509,3875.0,3874.3,1.85858]
[1761884773843,2.58073453,3874.9,3874.3,0.4589]
[1761884774047,0.4854,3875.5,3874.1,0.1858]
[1761884774251,0.4854,3875.4,3874.8,0.1288]
[1761884774448,2.58077101,3874.9,3874.1,0.1858]
[1761884774649,3.06577879,3875.4,3875.3,0.1288]
[1761884774859,2.58078709,3874.8,3874.1,0.1858]
[1761884775236,2.58078709,3874.8,3874.7,0.1288]
[1761884775638,2.64478709,3874.8,3874.7,0.1288]
[1761884775936,0.6755,3875.9,3874.7,1.0746]
[1761884776155,0.6755,3875.9,3874.7,3.52662611]
[1761884776156,3.06557149,3875.8,3874.7,3.52662611]
[1761884776468,0.1901,3875.9,3875.8,0.1288]
[1761884776656,2.77014592,3875.9,3875.8,0.1288]
[1761884776834,0.0589,3875.9,3875.8,0.1288]
[1761884777038,2.57997936,3876.0,3875.8,0.1288]
[1761884777236,0.01,3876.5,3876.0,0.4521]
[1761884777437,0.01,3876.5,3876.1,0.6518]
[1761884777763,2.57981657,3876.3,3875.7,0.1997]
[1761884777959,2.57978036,3876.3,3875.7,0.1997]
[1761884778267,2.57978628,3876.3,3875.7,0.1997]
[1761884778773,2.57971735,3876.4,3875.7,0.1997]
[1761884779268,0.01,3876.5,3875.2,0.405504]
[1761884779433,0.01,3876.5,3875.3,0.4615]
[1761884779636,2.57990223,3876.2,3875.3,3.04192687]
[1761884779846,2.57993085,3876.1,3875.3,0.4615]
[1761884780876,0.01,3876.5,3875.3,0.4615]
[1761884781077,2.58010743,3875.9,3875.1,0.1997]
[1761884781276,0.4517,3876.4,3875.2,3.05966593]
[1761884781277,2.57977968,3876.3,3875.2,3.05966593]
[1761884781482,2.58004402,3876.0,3875.2,0.4792]
[1761884781678,2.58004402,3876.0,3875.3,0.4792]
[1761884781869,0.4517,3876.4,3875.4,0.02580378]
[1761884782071,2.57993396,3876.1,3875.4,0.02580378]
[1761884782282,2.57999757,3876.0,3875.4,0.02580378]
[1761884782783,2.58005677,3875.9,3875.4,3.85]
[1761884782983,2.58010125,3875.9,3875.4,3.85]
[1761884783154,0.4517,3876.4,3875.4,3.85]
[1761884783568,2.58003986,3876.0,3875.4,3.85]
[1761884783765,0.4517,3876.4,3875.4,3.85]
[1761884783988,2.58008978,3875.9,3875.4,3.85]
[1761884784283,0.4517,3876.4,3875.4,3.85]
[1761884784516,2.5802073,3875.7,3875.4,3.85]
[1761884784688,4.634108,3876.3,3875.4,3.85]
[1761884784887,2.58031221,3875.5,3875.4,3.85]
[1761884785185,3.03154624,3876.2,3875.4,3.85]
[1761884785186,2.58025031,3875.6,3875.4,3.85]
[1761884785385,2.58031221,3875.5,3875.4,3.85]
[1761884785881,0.0974,3875.5,3875.4,3.85]
[1761884786083,3.12581221,3875.5,3875.4,3.85]
[1761884786289,2.58037879,3875.4,3875.3,0.002]
[1761884786493,0.4517,3876.1,3875.3,0.002]
[1761884786785,2.58032315,3875.5,3875.3,0.002]
[1761884787156,2.58037879,3875.4,3875.3,0.002]
[1761884787590,2.58037879,3875.4,3875.3,0.1308]
[1761884788386,2.58019063,3875.7,3875.3,0.1308]
[1761884788585,2.58019063,3875.7,3875.3,0.002]
[1761884788785,0.6494,3875.8,3875.3,0.002]
[1761884788994,2.58017906,3875.7,3875.6,0.1288]
[1761884789558,2.67757906,3875.7,3875.6,0.1288]
[1761884790899,3.12567906,3875.7,3875.6,0.1288]
[1761884792510,6.86092606,3875.7,3875.6,0.1288]
[1761884793606,6.86092606,3875.7,3875.3,0.1308]
[1761884793607,16.01195179,3875.4,3875.3,0.1308]
[1761884793921,2.58051197,3875.2,3874.9,0.002]
[1761884794216,7.49219616,3875.0,3874.9,0.002]
[1761884794414,7.49219616,3875.0,3874.9,0.1308]
[1761884794599,7.56249616,3875.0,3874.9,0.1308]
[1761884795114,7.56249616,3875.0,3874.9,1e-08]
[1761884796020,9.09097616,3875.0,3874.9,1e-08]
[1761884797292,6.79375216,3875.0,3874.9,1e-08]
[1761884797626,4.52972516,3875.0,3874.9,1e-08]
[1761884798075,7.14183516,3875.0,3874.9,1e-08]
[1761884798379,4.52972516,3875.0,3874.9,1e-08]
[1761884798575,10.63460216,3875.0,3874.9,1e-08]
[1761884799020,6.98487016,3875.0,3874.9,1e-08]
[1761884800086,6.98587016,3875.0,3874.9,0.00200001]
[1761884801418,17.65110316,3875.0,3874.9,0.00200001]
[1761884801573,16.04632316,3875.0,3874.9,0.00200001]
[1761884802504,21.53069016,3875.0,3874.9,0.00200001]
[1761884802673,7.74501016,3875.0,3874.9,0.00200001]
[1761884803070,4.53072516,3875.0,3874.9,0.00200001]
[1761884803827,6.77427116,3875.0,3874.9,0.00200001]
[1761884804315,10.47602516,3875.0,3874.9,0.00200001]
[1761884804720,10.57948525,3875.0,3874.9,0.00200001]
[1761884804916,8.24218525,3875.0,3874.9,0.00200001]
[1761884805436,8.79218525,3875.0,3874.9,0.00200001]
[1761884805895,4.63418525,3875.0,3874.9,0.00200001]
[1761884807222,4.76298525,3875.0,3874.9,0.00200001]
[1761884807421,8.79427025,3875.0,3874.9,0.00200001]
[1761884807600,9.33392825,3875.0,3874.9,0.00200001]
[1761884808629,19.86843625,3875.0,3874.9,0.00200001]
[1761884808997,19.56523525,3875.0,3874.9,0.00200001]
[1761884809198,16.41849125,3875.0,3874.9,0.00200001]
[1761884810928,14.36849125,3875.0,3874.9,0.00200001]
[1761884811229,13.98503116,3875.0,3874.9,0.00200001]
[1761884812029,14.05703116,3875.0,3874.9,0.00200001]
[1761884812330,2.58164516,3875.0,3874.9,0.46880001]
[1761884812637,2.66204516,3875.0,3874.9,0.00200001]
[1761884813098,4.06172516,3875.0,3874.9,0.00200001]
[1761884813308,13.65629816,3875.0,3874.9,0.00200001]
[1761884813508,11.93852716,3875.0,3874.9,0.00200001]
[1761884814556,11.63101616,3875.0,3874.9,0.00200001]
[1761884814933,18.74195016,3875.0,3874.9,0.00200001]
[1761884815505,18.00097916,3875.0,3874.9,0.00200001]
[1761884815842,16.26398816,3875.0,3874.9,0.00200001]
[1761884816244,12.97871016,3875.0,3874.9,0.00200001]
[1761884816812,19.30201316,3875.0,3874.9,0.00200001]
[1761884817012,18.28718016,3875.0,3874.9,0.00200001]
[1761884817337,12.00383416,3875.0,3874.9,0.00200001]
[1761884817739,10.46905416,3875.0,3874.9,0.00200001]
[1761884818042,10.73110616,3875.0,3874.9,0.00200001]
[1761884818942,18.25698516,3875.0,3874.9,0.00200001]
[1761884819111,17.83438516,3875.0,3874.9,0.00200001]
[1761884819511,16.50953916,3875.0,3874.9,0.00200001]
[1761884819714,21.38434962,3875.0,3874.9,0.00200001]
[1761884819916,21.05927362,3875.0,3874.9,0.00200001]
[1761884820152,20.15416362,3875.0,3874.9,0.00200001]
[1761884820651,20.55890349,3875.0,3874.9,0.00200001]
[1761884820946,26.44007349,3875.0,3874.9,0.00200001]
[1761884821146,22.98997849,3875.0,3874.9,0.00200001]
[1761884821952,25.14643249,3875.0,3874.9,0.00200001]
[1761884822321,19.68328862,3875.0,3874.9,0.00200001]
[1761884822939,21.39118862,3875.0,3874.9,0.00200001]
[1761884823350,4.11012516,3875.0,3874.9,0.46880001]
[1761884823658,4.19442516,3875.0,3874.9,0.00200001]
[1761884824452,3.98132516,3875.0,3874.9,0.00200001]
[1761884824755,3.98132516,3875.0,3874.9,0.46880001]
[1761884824956,2.58164516,3875.0,3874.9,1.08480001]
[1761884825253,0.001,3875.0,3874.9,1.08480001]
[1761884825619,2.58164516,3875.0,3874.9,1.08480001]
[1761884830259,2.58164516,3875.0,3874.9,0.59760001]
[1761884833132,2.58164516,3875.0,3874.9,1.08480001]
[1761884834466,2.58164516,3875.0,3874.9,0.59760001]
[1761884835362,2.58164516,3875.0,3874.9,0.13080001]
[1761884836065,2.67844516,3875.0,3874.9,0.13080001]
[1761884836562,2.58164516,3875.0,3874.9,0.13080001]
[1761884836766,2.67844516,3875.0,3874.9,0.13080001]
[1761884837762,24.29493962,3875.0,3874.9,1e-08]
[1761884837930,11.95941462,3875.0,3874.9,1e-08]
[1761884838131,6.95808416,3875.0,3874.9,1e-08]
[1761884838330,6.75595216,3875.0,3874.9,1e-08]
[1761884838656,7.22105216,3875.0,3874.9,1e-08]
[1761884839269,9.59486816,3875.0,3874.9,1e-08]
[1761884839557,9.28775416,3875.0,3874.9,1e-08]
[1761884839968,3.98132516,3875.0,3874.9,0.47040001]
[1761884840327,2.58164516,3875.0,3874.9,0.47040001]
[1761884840997,4.86987916,3875.0,3874.9,1e-08]
[1761884841195,6.26955916,3875.0,3874.9,1e-08]
[1761884842811,3.98132516,3875.0,3874.9,1e-08]
[1761884845111,4.07032516,3875.0,3874.9,1e-08]
[1761884845621,10.86351016,3875.0,3874.9,1e-08]
[1761884845909,4.54322516,3875.0,3874.9,1e-08]
[1761884846076,4.07032516,3875.0,3874.9,1e-08]
[1761884846708,6.26432816,3875.0,3874.9,1e-08]
[1761884846924,4.07032516,3875.0,3874.9,1e-08]
[1761884847277,7.80464516,3875.0,3874.9,1e-08]
[1761884847595,6.54701116,3875.0,3874.9,1e-08]
[1761884848390,7.01991116,3875.0,3874.9,1e-08]
[1761884848910,0.001,3875.0,3874.9,0.47040001]
[1761884849225,2.58164516,3875.0,3874.9,0.95590001]
[1761884850305,2.58164516,3875.0,3874.9,1.08470001]
[1761884850620,0.001,3875.0,3874.9,1.08470001]
[1761884854393,0.001,3875.0,3874.9,3.66541177]
[1761884854606,0.001,3875.0,3874.9,5.34179577]
[1761884857790,0.001,3875.0,3874.9,2.76108401]
[1761884857990,0.001,3875.0,3874.9,5.34179577]
[1761884858190,0.001,3875.0,3874.9,2.76108401]
[1761884858595,0.001,3875.0,3874.9,2.38138712]
[1761884860333,0.001,3875.0,3874.9,4.96209888]
[1761884861850,0.001,3875.0,3874.9,2.38138712]
[1761884864447,0.001,3875.0,3874.9,4.96209888]
[1761884864752,0.001,3875.0,3874.9,2.51018712]
[1761884865828,0.001,3875.0,3874.9,2.48438001]
[1761884866760,0.001,3875.0,3874.9,1.08470001]
[1761884867532,0.001,3875.0,3874.9,1.08670001]
[1761884868755,0.001,3875.0,3874.9,0.13080001]
[1761884868756,2.65024516,3875.0,3874.9,0.13080001]
[1761884869065,4.52652516,3875.0,3874.9,0.13080001]
[1761884869270,19.74791416,3875.0,3874.9,0.00200001]
[1761884869417,7.88706116,3875.0,3874.9,0.00200001]
[1761884870160,16.37791816,3875.0,3874.9,0.00200001]
[1761884870359,14.86969416,3875.0,3874.9,0.00200001]
[1761884870657,4.52652516,3875.0,3874.9,0.00200001]
[1761884873453,4.04992516,3875.0,3874.9,0.00200001]
[1761884873656,4.05992516,3875.0,3874.9,0.00200001]
[1761884873966,2.66024516,3875.0,3874.9,0.00200001]
[1761884874171,20.44427116,3875.0,3874.9,0.00200001]
[1761884874368,22.91178516,3875.0,3874.9,0.00200001]
[1761884874571,24.31146516,3875.0,3874.9,0.00200001]
[1761884875165,17.90313716,3875.0,3874.9,0.00200001]
[1761884875375,25.53720116,3875.0,3874.9,0.00200001]
[1761884875566,25.11161516,3875.0,3874.9,0.00200001]
[1761884875775,25.11161516,3875.0,3874.5,0.002]
[1761884875776,24.66318857,3874.6,3874.5,1e-08]
[1761884875969,25.16817257,3874.6,3874.5,1e-08]
[1761884876293,19.78876957,3874.6,3874.5,1e-08]
[1761884876477,20.06904957,3874.6,3874.5,1e-08]
[1761884877356,4.48949157,3874.6,3874.5,1e-08]
[1761884877561,22.91057757,3874.6,3874.5,1e-08]
[1761884877780,11.51016757,3874.6,3874.5,1e-08]
[1761884878097,8.62062657,3874.6,3874.5,1e-08]
[1761884880202,14.90329957,3874.6,3874.5,1e-08]
[1761884881022,2.58144457,3873.8,3871.1,1.80002558]
[1761884881153,26.29063721,3873.7,3872.3,0.1848]
[1761884881347,23.45982421,3873.7,3872.3,0.1848]
[1761884881586,22.40195521,3873.7,3872.3,0.6621]
[1761884881954,25.22375221,3873.7,3872.3,0.1848]
[1761884882170,25.22375221,3873.7,3872.3,0.6621]
[1761884882171,14.94991321,3873.7,3872.3,0.6621]
[1761884882647,15.35541721,3873.7,3872.1,0.1848]
[1761884882848,2.58204446,3872.9,3872.1,0.1848]
[1761884883064,7.70292646,3872.9,3872.1,0.6621]
[1761884884352,8.19702646,3872.9,3872.1,0.6621]
[1761884884547,3.33114446,3872.9,3872.1,0.6621]
[1761884884810,25.28468746,3872.9,3871.8,0.1842]
[1761884885090,15.84090346,3872.9,3871.3,0.4773]
[1761884885256,16.24640746,3872.9,3871.3,0.4773]
[1761884885693,17.82489646,3872.9,3871.4,0.4773]
[1761884886804,17.39732046,3872.9,3871.4,0.4773]
[1761884887692,17.80699246,3872.9,3871.4,0.4773]
[1761884887894,12.15169346,3872.9,3871.4,0.4773]
[1761884888755,15.89252946,3872.9,3871.4,0.4773]
[1761884889658,17.09594546,3872.9,3871.6,0.4773]
[1761884890420,15.70637046,3872.9,3871.6,0.4773]
[1761884890615,5.20812446,3872.9,3872.1,0.1848]
[1761884890795,9.93498446,3872.9,3872.1,0.1848]
[1761884890977,9.45768446,3872.9,3872.1,0.3136]
[1761884891586,15.89997246,3872.9,3872.1,0.3136]
[1761884891804,10.28832846,3872.9,3872.1,0.3136]
[1761884892089,9.92457846,3872.9,3872.1,0.3136]
[1761884892314,9.70068846,3872.9,3872.1,0.3136]
[1761884892700,4.73082446,3872.9,3872.1,0.3136]
[1761884892900,12.73792346,3872.9,3872.1,0.3136]
[1761884893397,12.73792346,3872.9,3872.1,0.1288]
[1761884893917,15.97614046,3872.9,3872.1,0.1288]
[1761884894287,16.38164446,3872.9,3871.8,0.1288]
[1761884894621,16.85894446,3872.9,3871.8,0.1288]
[1761884894804,31.36187146,3872.9,3871.8,0.1288]
[1761884895211,31.36187146,3872.9,3869.8,0.002]
[1761884895212,0.405504,3872.8,3869.8,0.002]
[1761884895397,2.58346187,3870.8,3870.3,0.4773]
[1761884895586,0.01,3870.7,3870.3,0.4773]
[1761884895789,2.58358531,3870.6,3870.3,0.4773]
[1761884896324,2.58365455,3870.5,3870.3,0.4773]
[1761884896487,2.58371227,3870.4,3870.3,0.4773]
[1761884896824,2.58365624,3870.5,3870.3,0.4773]
[1761884897180,2.58365624,3870.5,3870.4,0.4823]
[1761884897613,2.58365624,3870.5,3870.4,0.9763]
[1761884898025,2.59365624,3870.5,3870.4,0.9763]
[1761884898239,0.01,3870.5,3870.4,0.9763]
[1761884898441,2.59364552,3870.5,3870.4,0.9763]
[1761884898612,2.59364552,3870.5,3870.4,0.4823]
[1761884899018,2.59364552,3870.5,3870.1,0.002]
[1761884899019,2.58384186,3870.3,3870.1,0.002]
[1761884899240,2.59384579,3870.2,3870.1,0.002]
[1761884899441,0.01,3870.2,3870.1,0.496]
[1761884899647,2.59384579,3870.2,3870.1,0.9783]
[1761884900556,0.01,3870.2,3870.1,0.9783]
[1761884901144,2.59384579,3870.2,3870.1,0.9783]
[1761884901544,3.14304579,3870.2,3870.1,0.4843]
[1761884901909,2.59384579,3870.2,3870.1,0.002]
[1761884902185,2.68274579,3870.2,3870.1,0.002]
[1761884902751,4.53892579,3870.2,3870.1,0.002]
[1761884902979,26.04280879,3870.2,3870.1,0.002]
[1761884903146,4.38909656,3870.1,3870.0,1e-08]
[1761884903352,34.93819656,3870.1,3870.0,1e-08]
[1761884903758,34.17770956,3870.1,3870.0,1e-08]
[1761884903958,34.36199156,3870.1,3870.0,1e-08]
[1761884904352,23.87598656,3870.1,3870.0,1e-08]
[1761884904691,23.87598656,3870.1,3870.0,0.98290001]
[1761884904692,21.61638856,3870.1,3870.0,0.98290001]
[1761884904993,3.99359256,3870.1,3870.0,0.49080001]
[1761884906702,6.29481956,3870.1,3870.0,1e-08]
[1761884906860,6.05098756,3870.1,3870.0,1e-08]
[1761884907062,4.08249256,3870.1,3870.0,1e-08]
[1761884907487,7.82359156,3870.1,3870.0,1e-08]
[1761884907890,7.82359156,3870.1,3868.7,0.02584847]
[1761884907891,2.58522881,3868.2,3867.6,0.1884]
[1761884908112,3.783509,3868.5,3868.0,0.1288]
[1761884908414,2.58524857,3868.1,3868.0,0.1288]
[1761884908885,0.1288,3868.8,3868.0,1.1117]
[1761884909092,2.5851149,3868.3,3868.2,0.4908]
[1761884909783,2.5851149,3868.3,3868.2,1.1117]
[1761884909965,2.61096353,3868.3,3868.2,1.1117]
[1761884910166,0.02584863,3868.3,3868.2,1.1117]
[1761884910496,2.5851149,3868.3,3868.2,1.1117]
[1761884910697,0.01,3868.3,3868.2,0.9829]
[1761884911599,0.01,3868.3,3868.2,0.4908]
[1761884911600,2.5951149,3868.3,3868.2,0.4908]
[1761884911823,0.01,3868.3,3867.9,0.4921]
[1761884912100,0.01,3868.3,3867.3,0.1884]
[1761884912269,0.01,3868.3,3867.4,0.4921]
[1761884912590,2.58561659,3867.6,3867.4,0.4921]
[1761884912897,0.03584863,3867.5,3867.3,0.1884]
[1761884913100,2.58578336,3867.3,3867.2,0.34487546]
[1761884913302,2.62163199,3867.3,3867.2,0.34487546]
[1761884913518,8.86798499,3867.3,3867.2,1e-08]
[1761884913663,4.45716336,3867.3,3867.2,1e-08]
[1761884913995,4.02131199,3867.3,3867.2,1e-08]
[1761884914308,4.94321199,3867.3,3867.2,1e-08]
[1761884914466,4.91736336,3867.3,3867.2,1e-08]
[1761884914662,1.43552863,3867.3,3867.2,1e-08]
[1761884915068,4.02131199,3867.3,3867.2,1e-08]
[1761884915405,4.48301199,3867.3,3867.2,1e-08]
[1761884915604,2.58591709,3867.1,3867.0,1e-08]